bitfinex/quotes_SOLUSD_20251201
["timestamp","ask_amount","ask_price","bid_price","bid_amount"]
[1764604919997,91.60633118,125.32,125.28,7.98196859]
[1764604920198,84.06,125.32,125.28,7.98196859]
[1764604920398,176.48849275,125.34,125.29,17.29633118]
[1764604920626,75.14216157,125.32,125.28,24.58829977]
[1764604920797,75.14216157,125.32,125.28,7.98196859]
[1764604920798,16.60633118,125.31,125.28,7.98196859]
[1764604920995,91.74849275,125.32,125.28,7.58196859]
[1764604921199,91.60633118,125.3,125.24,36.56741076]
[1764604921407,91.60633118,125.28,125.24,19.96107958]
[1764604921626,84.06,125.28,125.24,20.65107958]
[1764604921904,9.06,125.3,125.25,0.69]
[1764604922103,16.60633118,125.27,125.22,27.95080657]
[1764604922416,16.60633118,125.24,125.22,7.98594473]
[1764604922603,75.0,125.25,125.23,0.69]
[1764604922604,9.06,125.25,125.23,0.69]
[1764604922803,9.06,125.25,125.22,8.67594473]
[1764604923105,91.60633118,125.27,125.22,25.28227591]
[1764604923309,91.60633118,125.27,125.22,7.98594473]
[1764604923611,26.38633118,125.26,125.22,28.64080657]
[1764604923922,9.78,125.26,125.22,0.69]
[1764604924114,9.06,125.26,125.23,16.60633118]
[1764604924321,9.06,125.3,125.25,16.60633118]
[1764604924519,75.72,125.31,125.26,16.60633118]
[1764604924825,75.72,125.31,125.26,17.29633118]
[1764604925027,92.32633118,125.31,125.26,17.29633118]
[1764604925321,75.0,125.31,125.27,25.27908842]
[1764604925819,75.0,125.31,125.27,8.67275724]
[1764604926019,34.4762761,125.32,125.27,8.67275724]
[1764604926317,9.78,125.32,125.28,0.69]
[1764604926516,9.06,125.32,125.29,16.60633118]
[1764604927226,9.06,125.32,125.29,7.98148295]
[1764604928321,101.27843767,125.31,125.25,37.25593785]
[1764604928525,101.27843767,125.31,125.26,7.98339453]
[1764604928734,0.72,125.3,125.26,7.98339453]
[1764604928906,9.06,125.32,125.27,17.29633118]
[1764604929104,9.06,125.32,125.29,16.60633118]
[1764604929310,75.14216157,125.33,125.29,16.60633118]
[1764604929633,75.86216157,125.33,125.29,17.29633118]
[1764604930010,75.14216157,125.33,125.29,17.29633118]
[1764604930206,17.32633118,125.32,125.27,9.73]
[1764604930419,100.55843767,125.31,125.27,7.98247373]
[1764604930616,16.60633118,125.29,125.26,7.98326677]
[1764604930814,25.64633118,125.28,125.22,36.57089034]
[1764604931001,25.64633118,125.28,125.23,27.94831146]
[1764604931207,75.0,125.29,125.24,17.29633118]
[1764604931612,75.72,125.29,125.24,17.29633118]
[1764604931941,75.0,125.29,125.25,0.69]
[1764604932233,75.0,125.29,125.24,16.60633118]
[1764604932234,92.32633118,125.29,125.24,0.69]
[1764604932417,100.30782195,125.29,125.24,8.67440312]
[1764604932619,100.30782195,125.29,125.21,25.548864]
[1764604932620,91.60633118,125.26,125.21,8.18632854]
[1764604932814,100.64633118,125.26,125.21,8.18632854]
[1764604933125,75.0,125.29,125.22,9.73]
[1764604933331,92.32633118,125.29,125.23,16.60633118]
[1764604933540,75.0,125.29,125.25,16.60633118]
[1764604933710,92.32633118,125.29,125.25,0.69]
[1764604933911,92.32633118,125.29,125.24,16.60633118]
[1764604934110,92.32633118,125.29,125.23,17.29633118]
[1764604934318,16.60633118,125.25,125.21,28.84278489]
[1764604934519,16.60633118,125.24,125.21,8.18657008]
[1764604934719,75.0,125.25,125.21,8.18657008]
[1764604935231,9.04,125.26,125.22,0.69]
[1764604935432,9.04,125.26,125.22,17.29633118]
[1764604935634,75.0,125.27,125.23,16.60633118]
[1764604935816,92.99210649,125.28,125.23,17.29633118]
[1764604936017,92.99210649,125.28,125.24,17.29633118]
[1764604936314,9.04,125.28,125.25,7.98403193]
[1764604936522,9.04,125.28,125.25,8.67403193]
[1764604936830,0.72,125.28,125.24,7.984497]
[1764604937017,0.72,125.28,125.24,8.674497]
[1764604937220,84.04,125.29,125.25,0.69]
[1764604937614,84.76,125.29,125.25,0.69]
[1764604938320,84.04,125.29,125.25,0.69]
[1764604938735,9.04,125.29,125.26,7.98339453]
[1764604938943,75.86216157,125.31,125.26,24.58972571]
[1764604939118,84.76,125.31,125.26,25.27972571]
[1764604939442,92.74022632,125.31,125.26,45.23821205]
[1764604939649,84.76,125.31,125.26,44.54821205]
[1764604939941,9.04,125.31,125.27,17.29633118]
[1764604940235,109.0478629,125.33,125.28,16.60633118]
[1764604940423,75.0,125.3,125.26,44.54821205]
[1764604940607,25.348864,125.33,125.29,24.58759321]
[1764604940811,9.04,125.33,125.3,16.60633118]
[1764604941022,75.0,125.35,125.32,16.60633118]
[1764604941238,0.72,125.34,125.29,28.62496942]
[1764604941439,75.0,125.33,125.29,44.5413006]
[1764604941612,75.0,125.33,125.29,45.2313006]
[1764604941818,75.72,125.33,125.29,45.2313006]
[1764604942013,75.72,125.33,125.29,28.62496942]
[1764604942225,75.72,125.33,125.29,27.93496942]
[1764604942426,75.72,125.33,125.29,28.62496942]
[1764604942717,75.72,125.33,125.29,27.93496942]
[1764604942926,75.72,125.33,125.29,28.62496942]
[1764604943126,75.72,125.33,125.29,45.2313006]
[1764604943324,100.30531588,125.33,125.29,7.98126203]
[1764604943638,100.30531588,125.33,125.29,8.67126203]
[1764604943639,83.6989847,125.33,125.29,8.67126203]
[1764604944240,83.6989847,125.33,125.28,24.58845123]
[1764604944532,82.9789847,125.33,125.29,11.30565613]
[1764604944734,82.9789847,125.33,125.28,19.28777618]
[1764604945057,0.72,125.32,125.28,8.67212005]
[1764604945235,11.33565613,125.32,125.28,8.67212005]
[1764604945437,0.72,125.32,125.28,8.67212005]
[1764604945943,94.65565613,125.31,125.28,7.98212005]
[1764604946446,11.33565613,125.3,125.25,20.6493987]
[1764604946628,84.04,125.31,125.26,11.30565613]
[1764604947042,9.04,125.31,125.27,11.30565613]
[1764604947345,75.0,125.3,125.26,28.63188087]
[1764604947537,75.72,125.3,125.26,28.63188087]
[1764604947719,75.0,125.3,125.26,38.557537]
[1764604947921,75.0,125.3,125.26,39.247537]
[1764604948133,75.0,125.3,125.26,28.63188087]
[1764604949020,75.72,125.3,125.26,28.63188087]
[1764604949242,75.0,125.3,125.26,28.63188087]
[1764604949545,0.72,125.29,125.26,7.98339453]
[1764604949729,11.33565613,125.29,125.26,7.98339453]
[1764604950038,0.72,125.29,125.25,7.98403193]
[1764604950540,0.72,125.29,125.23,16.308864]
[1764604950541,86.33565613,125.28,125.23,10.61565613]
[1764604950719,75.72,125.28,125.23,10.61565613]
[1764604951038,86.33565613,125.28,125.23,10.61565613]
[1764604951214,75.72,125.28,125.24,0.69]
[1764604951612,75.72,125.28,125.24,7.98466943]
[1764604951832,0.72,125.27,125.24,7.98466943]
[1764604952026,11.33565613,125.27,125.23,7.98502134]
[1764604952243,9.04,125.26,125.21,40.51120571]
[1764604952432,75.0,125.24,125.21,0.2]
[1764604952621,94.65565613,125.24,125.21,0.2]
[1764604952817,11.28565613,125.23,125.21,0.2]
[1764604953126,19.65565613,125.22,125.21,0.2]
[1764604953436,84.71,125.22,125.21,0.2]
[1764604953635,95.32565613,125.22,125.21,0.2]
[1764604954139,84.71,125.22,125.21,0.2]
[1764604954520,95.32565613,125.22,125.21,0.2]
[1764604955222,84.04,125.22,125.21,0.2]
[1764604955423,9.04,125.22,125.21,0.2]
[1764604956748,9.04,125.22,125.21,8.18658254]
[1764604957344,75.0,125.26,125.21,39.44869502]
[1764604957530,10.61565613,125.24,125.21,0.2]
[1764604957739,85.61565613,125.24,125.21,0.2]
[1764604958132,75.0,125.24,125.21,28.83301323]
[1764604958849,9.04,125.25,125.21,39.44866936]
[1764604959247,9.04,125.25,125.21,28.83301323]
[1764604959649,0.67,125.24,125.21,8.18655688]
[1764604959949,0.67,125.24,125.21,0.2]
[1764604959950,85.61565613,125.22,125.21,0.2]
[1764604960142,9.04,125.23,125.21,0.2]
[1764604960343,75.0,125.23,125.21,0.2]
[1764604964536,102.55248331,125.24,125.21,0.2]
[1764604964738,11.28565613,125.24,125.21,8.18614305]
[1764604965057,0.67,125.23,125.21,8.18614305]
[1764604965235,75.67,125.23,125.21,8.18614305]
[1764604965438,75.0,125.23,125.21,8.18614305]
[1764604965634,95.32565613,125.25,125.21,8.86614305]
[1764604965939,0.67,125.24,125.21,8.18614305]
[1764604966144,11.28565613,125.24,125.21,8.18614305]
[1764604968557,10.61565613,125.24,125.21,8.18614305]
[1764604968859,11.28565613,125.23,125.21,8.18614305]
[1764604969169,75.0,125.19,125.15,8.19017215]
[1764604969468,85.61565613,125.16,125.15,0.2]
[1764604969680,94.65565613,125.16,125.15,0.2]
[1764604970041,9.04,125.16,125.15,0.2]
[1764604970463,104.27776262,125.16,125.15,0.2]
[1764604970761,112.26753571,125.16,125.15,0.2]
[1764604971058,103.60776262,125.16,125.15,0.2]
[1764604971358,112.26753571,125.16,125.15,0.2]
[1764604971560,94.65565613,125.16,125.15,0.2]
[1764604972243,84.04,125.16,125.15,0.2]
[1764604972443,94.65565613,125.16,125.15,0.2]
[1764604972640,102.64542922,125.16,125.15,0.2]
[1764604973260,85.61565613,125.16,125.15,0.2]
[1764604973565,94.65565613,125.16,125.15,0.2]
[1764604974066,85.61565613,125.16,125.15,0.2]
[1764604974367,94.65565613,125.16,125.15,0.2]
[1764604974542,91.308864,125.19,125.15,0.88]
[1764604974861,35.96452013,125.19,125.15,8.870206]
[1764604975085,35.96452013,125.19,125.17,7.98913477]
[1764604975086,9.04,125.19,125.17,7.98913477]
[1764604975265,11.28565613,125.18,125.15,0.2]
[1764604975462,94.56776262,125.17,125.15,0.2]
[1764604975653,10.61565613,125.16,125.15,0.2]
[1764604975854,84.04,125.17,125.15,0.2]
[1764604976058,9.04,125.17,125.15,0.2]
[1764604976243,94.65565613,125.17,125.15,0.2]
[1764604976444,95.32565613,125.17,125.15,0.2]
[1764604976645,84.04,125.17,125.15,0.2]
[1764604977055,94.65565613,125.17,125.15,0.2]
[1764604977258,20.23776262,125.16,125.15,0.2]
[1764604977450,95.23776262,125.16,125.15,0.2]
[1764604978672,95.23776262,125.16,125.14,0.2]
[1764604978673,83.95210649,125.15,125.14,0.2]
[1764604978852,104.27776262,125.15,125.14,0.2]
[1764604979165,83.95210649,125.14,125.13,0.2]
[1764604979376,100.26097049,125.11,125.1,0.03]
[1764604979559,175.11880892,125.09,125.05,0.2]
[1764604979757,195.08662662,125.09,125.05,0.2]
[1764604979959,195.08662662,125.09,125.08,0.1]
[1764604980350,158.95210649,125.06,125.05,0.2]
[1764604980681,178.60776262,125.06,125.05,0.2]
[1764604981053,194.91662662,125.06,125.05,0.2]
[1764604981378,202.91278846,125.06,125.05,0.2]
[1764604981750,192.29713233,125.06,125.05,0.2]
[1764604981957,202.91278846,125.06,125.05,0.2]
[1764604982151,0.14216157,125.1,125.05,8.87662693]
[1764604982382,85.61565613,125.07,125.05,0.2]
[1764604982610,19.56776262,125.06,125.05,0.2]
[1764604983271,75.0,125.07,125.05,0.86]
[1764604983451,84.04,125.07,125.05,0.86]
[1764604983653,9.04,125.07,125.06,0.66]
[1764604983868,9.04,125.07,125.05,8.19673415]
[1764604984061,9.04,125.07,125.05,8.85673415]
[1764604984258,9.04,125.07,125.06,0.66]
[1764604984577,9.04,125.07,125.06,8.65616184]
[1764604984787,8.80994492,125.12,125.06,19.27181797]
[1764604985080,19.42560105,125.12,125.07,11.27565613]
[1764604985285,84.04,125.13,125.07,0.66]
[1764604985460,75.0,125.16,125.11,10.61565613]
[1764604985667,75.0,125.16,125.08,0.66]
[1764604985668,75.0,125.12,125.08,0.66]
[1764604985858,9.04,125.12,125.08,0.66]
[1764604986061,9.04,125.12,125.09,10.61565613]
[1764604986361,9.04,125.14,125.1,10.61565613]
[1764604986562,9.04,125.14,125.11,7.99296618]
[1764604986764,9.04,125.14,125.11,8.65296618]
[1764604986964,9.04,125.14,125.12,0.66]
[1764604987685,9.04,125.14,125.11,18.60862231]
[1764604987686,9.04,125.14,125.11,7.99296618]
[1764604987864,10.61565613,125.13,125.09,8.65376489]
[1764604988075,100.84111839,125.14,125.1,0.66]
[1764604988076,111.45677452,125.14,125.1,0.66]
[1764604988260,36.35198484,125.17,125.1,11.27565613]
[1764604988261,91.79979668,125.16,125.1,11.27565613]
[1764604988463,93.60424971,125.18,125.12,10.61565613]
[1764604988767,10.61565613,125.17,125.12,10.61565613]
[1764604989079,10.61565613,125.17,125.13,0.66]
[1764604989459,75.0,125.16,125.13,0.66]
[1764604989677,27.64499647,125.17,125.13,0.66]
[1764604990058,9.04,125.17,125.14,7.99105002]
[1764604990378,9.04,125.17,125.13,0.66]
[1764604990379,83.80994492,125.14,125.1,0.66]
[1764604990557,10.61565613,125.12,125.1,0.66]
[1764604990982,94.65565613,125.12,125.08,0.66]
[1764604991365,10.61565613,125.11,125.08,0.66]
[1764604991681,10.61565613,125.11,125.08,8.65477311]
[1764604992191,84.04,125.12,125.09,0.66]
[1764604992192,9.04,125.12,125.09,0.66]
[1764604993278,94.65565613,125.12,125.09,0.66]
[1764604993682,9.04,125.12,125.09,8.65415093]
[1764604993982,84.04,125.14,125.09,39.25541742]
[1764604994173,84.04,125.14,125.1,0.66]
[1764604994371,94.65565613,125.14,125.1,0.66]
[1764604994572,94.65565613,125.14,125.05,0.2]
[1764604994573,83.95210649,125.12,125.05,0.2]
[1764604994885,9.04,125.12,125.08,10.61565613]
[1764604995089,9.04,125.12,125.07,11.27565613]
[1764604995673,19.65565613,125.12,125.08,7.99488327]
[1764604995987,19.65565613,125.12,125.08,7.65488327]
[1764604996181,10.61565613,125.11,125.08,0.66]
[1764604996692,10.61565613,125.11,125.05,0.2]
[1764604996693,10.61565613,125.1,125.06,0.66]
[1764604996882,10.61565613,125.1,125.05,0.2]
[1764604996883,10.61565613,125.07,125.05,0.2]
[1764604997071,19.65565613,125.08,125.05,0.86]
[1764604997390,9.04,125.08,125.05,8.8566974]
[1764604997618,9.04,125.08,125.06,0.66]
[1764604997783,9.04,125.08,125.06,8.65604224]
[1764604997999,9.04,125.08,125.07,0.66]
[1764604998290,19.65565613,125.1,125.07,0.66]
[1764604998796,10.61565613,125.08,125.05,0.2]
[1764604999090,103.60776262,125.07,125.05,0.2]
[1764604999290,84.04,125.07,125.05,0.86]
[1764605000366,94.65565613,125.07,125.05,0.2]
[1764605000566,10.61565613,125.06,125.05,0.2]
[1764605000767,94.65565613,125.07,125.05,0.2]
[1764605001175,94.65565613,125.07,125.05,0.86]
[1764605001396,9.04,125.07,125.05,8.19661169]
[1764605001812,19.65565613,125.07,125.05,8.19661169]
[1764605002104,94.65565613,125.07,125.05,0.2]
[1764605002268,10.61565613,125.06,125.05,0.2]
[1764605002782,94.65565613,125.07,125.05,0.2]
[1764605004298,9.04,125.07,125.05,0.86]
[1764605004477,100.7430637,125.07,125.05,0.2]
[1764605004672,100.7430637,125.07,125.05,0.86]
[1764605004992,100.7430637,125.07,125.05,0.2]
[1764605005171,84.04,125.07,125.05,0.2]
[1764605005378,16.7030637,125.06,125.05,0.2]
[1764605006305,100.65517019,125.06,125.05,0.2]
[1764605006501,9.04,125.06,125.05,0.2]
[1764605006699,9.04,125.06,125.05,0.86]
[1764605007572,25.7430637,125.06,125.05,0.86]
[1764605007766,9.04,125.06,125.05,0.86]
[1764605008266,92.99210649,125.08,125.05,0.86]
[1764605008469,16.7030637,125.06,125.05,0.2]
[1764605008697,109.69517019,125.06,125.05,0.2]
[1764605009085,25.65517019,125.06,125.05,0.2]
[1764605009408,34.69517019,125.06,125.05,0.2]
[1764605009910,25.7430637,125.06,125.05,0.2]
[1764605010712,9.04,125.06,125.05,0.2]
[1764605010890,25.7430637,125.06,125.05,0.2]
[1764605011085,16.7030637,125.06,125.05,0.2]
[1764605011407,25.7430637,125.06,125.05,0.89]
[1764605011718,16.7030637,125.07,125.05,0.89]
[1764605012008,92.99210649,125.08,125.05,0.89]
[1764605012213,25.7430637,125.08,125.06,8.68573983]
[1764605012588,25.7430637,125.08,125.05,0.2]
[1764605012589,25.7430637,125.08,125.07,0.69]
[1764605012793,25.7430637,125.08,125.06,0.69]
[1764605013493,9.04,125.08,125.06,0.69]
[1764605013696,16.7030637,125.09,125.06,0.69]
[1764605014218,16.7030637,125.11,125.07,7.9955225]
[1764605014528,16.7030637,125.11,125.08,0.65]
[1764605015218,25.7430637,125.12,125.08,0.65]
[1764605015594,9.04,125.12,125.08,0.65]
[1764605016011,25.7430637,125.12,125.08,0.65]
[1764605016335,158.80994492,125.15,125.08,28.63174566]
[1764605016534,158.80994492,125.15,125.09,16.7030637]
[1764605016535,16.7030637,125.15,125.09,16.7030637]
[1764605016846,16.7030637,125.14,125.1,0.65]
[1764605017801,25.7430637,125.15,125.1,0.65]
[1764605018210,25.7430637,125.15,125.11,27.97538165]
[1764605018401,25.7430637,125.15,125.12,0.65]
[1764605018824,9.04,125.15,125.12,0.65]
[1764605019031,25.7430637,125.15,125.12,0.65]
[1764605019707,16.7030637,125.14,125.12,0.65]
[1764605020154,16.7030637,125.13,125.1,7.99332661]
[1764605020425,16.7030637,125.14,125.11,0.65]
[1764605020810,25.7430637,125.15,125.11,0.65]
[1764605021011,16.7030637,125.14,125.11,0.65]
[1764605021411,16.7030637,125.13,125.11,0.65]
[1764605021822,9.04,125.15,125.11,0.65]
[1764605022007,16.7030637,125.13,125.11,0.65]
[1764605022208,16.7030637,125.12,125.11,0.65]
[1764605022528,16.7030637,125.14,125.11,0.65]
[1764605023112,16.7030637,125.14,125.12,7.99232736]
[1764605023515,16.7030637,125.14,125.12,8.64232736]
[1764605023713,9.04,125.15,125.13,0.65]
[1764605023714,25.7430637,125.15,125.13,0.65]
[1764605024230,16.7030637,125.14,125.13,0.65]
[1764605025128,25.7430637,125.15,125.13,0.65]
[1764605025625,16.7030637,125.14,125.12,7.99232736]
[1764605025824,16.7030637,125.14,125.12,8.64232736]
[1764605026333,9.04,125.15,125.13,0.65]
[1764605026624,16.7030637,125.14,125.12,8.64232736]
[1764605027124,16.7030637,125.13,125.1,28.62706492]
[1764605027315,16.7030637,125.13,125.11,0.65]
[1764605027712,16.7030637,125.14,125.11,0.65]
[1764605028120,16.7030637,125.14,125.12,7.99232736]
[1764605028323,16.7030637,125.13,125.12,7.99232736]
[1764605028505,16.7030637,125.13,125.12,8.64232736]
[1764605028701,16.7030637,125.13,125.12,0.65]
[1764605029829,16.7030637,125.13,125.11,7.99296057]
[1764605030034,16.7030637,125.12,125.1,0.65]
[1764605031026,16.7030637,125.11,125.08,8.64488327]
[1764605031228,16.7030637,125.09,125.07,7.99528073]
[1764605031533,16.7030637,125.09,125.07,8.64528073]
[1764605031715,16.7030637,125.09,125.08,0.65]
[1764605035713,92.03301724,125.11,125.08,0.65]
[1764605035943,16.7030637,125.09,125.08,0.65]
[1764605036129,16.7030637,125.09,125.06,8.64587298]
[1764605036328,75.0,125.09,125.06,7.99587298]
[1764605036535,75.0,125.09,125.06,0.65]
[1764605036536,16.7030637,125.07,125.06,0.65]
[1764605036925,16.7030637,125.07,125.05,8.19649974]
[1764605037130,16.7030637,125.07,125.05,8.84649974]
[1764605037440,16.7030637,125.07,125.06,0.65]
[1764605038032,16.7030637,125.07,125.05,8.19649974]
[1764605038033,100.7430637,125.07,125.05,0.2]
[1764605038233,25.72517019,125.06,125.05,0.2]
[1764605038418,108.72133203,125.06,125.05,0.2]
[1764605038619,108.72133203,125.06,125.05,0.13]
[1764605038840,125.03019603,125.06,125.05,0.13]
[1764605039039,108.72133203,125.06,125.05,0.13]
[1764605039245,175.11880892,125.04,125.03,0.2]
[1764605039436,200.86187262,125.04,125.03,0.2]
[1764605040059,201.00403419,125.04,125.03,0.2]
[1764605040546,209.001475,125.04,125.03,0.2]
[1764605040718,199.961475,125.04,125.03,0.2]
[1764605041315,199.961475,125.04,125.03,1e-08]
[1764605041513,8.95210649,125.03,125.02,0.2]
[1764605041719,34.69517019,125.03,125.02,0.2]
[1764605042048,33.0119277,125.03,125.02,0.85]
[1764605042224,16.7030637,125.03,125.02,0.2]
[1764605043025,17.17905604,125.05,125.02,0.2]
[1764605043225,16.7030637,125.03,125.02,0.87]
[1764605043927,16.7030637,125.05,125.02,8.8687202]
[1764605044242,25.7430637,125.06,125.03,0.67]
[1764605044431,25.7430637,125.08,125.03,0.67]
[1764605044626,16.7030637,125.07,125.04,7.99744081]
[1764605045025,16.7030637,125.07,125.05,0.67]
[1764605045432,25.7430637,125.08,125.05,0.67]
[1764605045642,91.7030637,125.07,125.05,0.67]
[1764605045850,16.7030637,125.06,125.04,7.99744081]
[1764605046221,16.7030637,125.06,125.05,0.67]
[1764605046419,16.7030637,125.06,125.04,8.66744081]
[1764605047348,83.95210649,125.03,125.02,0.2]
[1764605047650,184.69517019,125.03,125.02,0.2]
[1764605048146,25.7430637,125.03,125.02,0.2]
[1764605048350,100.7430637,125.05,125.02,8.8687202]
[1764605048547,9.04,125.05,125.02,8.8687202]
[1764605048848,9.04,125.05,125.03,0.67]
[1764605049146,25.7430637,125.05,125.03,0.67]
[1764605049351,25.7430637,125.05,125.03,8.66794664]
[1764605049541,16.7030637,125.04,125.03,8.66794664]
[1764605050649,16.7030637,125.04,125.03,0.67]
[1764605050951,16.7030637,125.04,125.02,0.2]
[1764605051242,200.86187262,125.03,125.02,0.2]
[1764605051448,201.00403419,125.03,125.02,0.2]
[1764605051943,108.0119277,125.03,125.02,0.2]
[1764605052145,116.96403419,125.03,125.02,0.2]
[1764605052446,209.00211465,125.03,125.02,0.2]
[1764605053347,192.69325065,125.03,125.02,0.2]
[1764605053842,184.69517019,125.03,125.02,0.2]
[1764605054042,16.7030637,125.03,125.02,0.87]
[1764605054244,91.7030637,125.03,125.02,0.2]
[1764605054466,16.7030637,125.03,125.02,0.2]
[1764605054627,16.7030637,125.03,125.02,0.87]
[1764605054827,16.7030637,125.03,125.02,0.2]
[1764605055830,16.7030637,125.03,125.02,0.87]
[1764605056034,16.7030637,125.04,125.02,8.86871227]
[1764605056257,75.14216157,125.05,125.03,0.67]
[1764605056258,25.7430637,125.05,125.03,0.67]
[1764605056748,25.7430637,125.05,125.02,8.19871227]
[1764605056959,25.7430637,125.05,125.03,0.67]
[1764605057142,9.04,125.05,125.03,0.67]
[1764605057453,25.7430637,125.05,125.03,0.67]
[1764605057951,25.7430637,125.05,125.03,8.66798466]
[1764605058153,9.04,125.05,125.03,0.67]
[1764605058330,16.7030637,125.05,125.04,0.67]
[1764605059833,25.7430637,125.06,125.04,8.66744081]
[1764605060151,16.7030637,125.05,125.02,8.19849157]
[1764605060353,91.7030637,125.03,125.02,0.2]
[1764605060941,100.65517019,125.03,125.02,0.2]
[1764605061349,116.96403419,125.03,125.02,0.2]
[1764605061959,116.01000816,125.03,125.02,0.2]
[1764605062461,16.7030637,125.03,125.02,0.87]
[1764605062663,25.348864,125.04,125.02,0.87]
[1764605062862,42.0519277,125.04,125.03,0.67]
[1764605063042,91.7030637,125.05,125.03,0.67]
[1764605063656,75.0,125.05,125.02,8.19816298]
[1764605063851,75.0,125.05,125.03,0.67]
[1764605064063,75.0,125.1,125.04,42.0519277]
[1764605064363,16.7030637,125.14,125.08,16.7030637]
[1764605064562,75.0,125.15,125.09,16.7030637]
[1764605064563,91.7030637,125.15,125.09,16.7030637]
[1764605064861,91.7030637,125.15,125.04,27.34886399]
[1764605064862,16.7030637,125.11,125.06,0.67]
[1764605065065,16.7030637,125.1,125.06,0.67]
[1764605065242,16.7030637,125.11,125.06,0.67]
[1764605065567,91.7030637,125.11,125.06,0.67]
[1764605066066,91.7030637,125.11,125.07,7.9955225]
[1764605066357,85.65359821,125.11,125.07,7.9955225]
[1764605066558,85.65359821,125.11,125.07,8.6655225]
[1764605067244,10.65359821,125.1,125.07,8.6655225]
[1764605067968,10.65359821,125.08,125.05,7.99627159]
[1764605068139,10.65359821,125.07,125.05,7.99627159]
[1764605068336,10.65359821,125.07,125.03,8.66752731]
[1764605068660,11.33359821,125.07,125.03,8.66752731]
[1764605068859,10.65359821,125.06,125.03,8.66752731]
[1764605069159,10.65359821,125.05,125.02,0.2]
[1764605069338,10.65359821,125.06,125.03,8.65808046]
[1764605069745,19.69359821,125.07,125.04,0.66]
[1764605070159,19.69359821,125.07,125.04,8.65737377]
[1764605070661,111.71246221,125.09,125.05,0.66]
[1764605071268,25.348864,125.09,125.05,0.66]
[1764605071439,11.36359821,125.08,125.04,27.99097581]
[1764605072260,10.65359821,125.06,125.03,8.65784061]
[1764605072559,8.95210649,125.08,125.03,8.65784061]
[1764605072778,10.65359821,125.06,125.03,8.65784061]
[1764605073142,10.65359821,125.04,125.02,0.2]
[1764605073341,84.72,125.05,125.02,0.2]
[1764605073342,9.04,125.03,125.02,0.2]
[1764605073567,94.69359821,125.03,125.02,0.2]
[1764605073752,19.69359821,125.03,125.02,0.2]
[1764605074360,9.04,125.03,125.02,0.2]
[1764605074737,19.69359821,125.03,125.02,0.2]
[1764605075155,9.04,125.03,125.02,0.2]
[1764605075753,20.37359821,125.03,125.02,0.2]
[1764605076163,10.65359821,125.03,125.02,0.2]
[1764605076465,9.04,125.05,125.02,8.8987202]
[1764605076660,26.96246221,125.06,125.02,8.8987202]
[1764605076661,16.308864,125.06,125.02,8.8987202]
[1764605076857,85.65359821,125.07,125.03,0.7]
[1764605076858,94.69359821,125.07,125.03,0.7]
[1764605077244,10.65359821,125.06,125.03,0.7]
[1764605077679,101.028864,125.07,125.02,0.2]
[1764605077680,16.308864,125.04,125.02,0.2]
[1764605077853,26.96246221,125.04,125.02,0.2]
[1764605078057,10.65359821,125.03,125.02,0.2]
[1764605078455,26.96246221,125.04,125.02,0.2]
[1764605078660,10.65359821,125.03,125.02,0.2]
[1764605081368,26.96246221,125.04,125.02,0.2]
[1764605081570,26.96246221,125.04,125.02,8.1985127]
[1764605081755,26.96246221,125.04,125.02,0.2]
[1764605082177,10.65359821,125.03,125.02,0.2]
[1764605082365,104.3257047,125.03,125.02,0.2]
[1764605083584,112.32378516,125.03,125.02,0.2]
[1764605086380,83.95210649,125.02,125.01,0.2]
[1764605086583,95.2857047,125.02,125.01,0.2]
[1764605087783,103.2844249,125.02,125.01,0.2]